bitfinex/quotes_SOLUSD_20240824
["timestamp","ask_amount","ask_price","bid_price","bid_amount"]
[1724541820146,17.38572108,159.76,159.71,26.25190646]
[1724541820342,17.38572108,159.76,159.71,20.0]
[1724541821463,17.38572108,159.76,159.7,6.2520714]
[1724541821665,17.38572108,159.76,159.71,20.0]
[1724541822846,10.88651416,159.74,159.71,20.0]
[1724541830547,6.49920692,159.76,159.71,20.0]
[1724541830548,10.88651416,159.72,159.71,20.0]
[1724541830868,10.88651416,159.72,159.7,20.0]
[1724541834072,10.88651416,159.72,159.69,6.25463585]
[1724541834272,10.88651416,159.72,159.7,20.0]
[1724541836585,10.88651416,159.74,159.7,20.0]
[1724541837161,10.88651416,159.74,159.65,23.82524355]
[1724541837162,10.88651416,159.74,159.69,6.25419493]
[1724541837365,10.88651416,159.74,159.7,20.0]
[1724541838380,10.88651416,159.74,159.7,13.71565]
[1724541838579,10.88651416,159.74,159.69,20.0]
[1724541838793,10.88651416,159.74,159.67,6.25419493]
[1724541839915,27.16671416,159.72,159.67,6.25419493]
[1724541840075,27.16671416,159.72,159.65,6.25419493]
[1724541840274,27.16671416,159.72,159.66,6.25419493]
[1724541840498,27.16671416,159.72,159.63,10.88651416]
[1724541840911,27.16671416,159.72,159.59,39.47602854]
[1724541841072,27.16671416,159.72,159.61,10.88651416]
[1724541841073,10.88651416,159.7,159.61,10.88651416]
[1724541841268,10.88651416,159.7,159.58,5.77094106]
[1724541841582,10.88651416,159.7,159.59,10.88651416]
[1724541842767,10.88651416,159.7,159.6,20.0]
[1724541843199,10.88651416,159.7,159.61,10.88651416]
[1724541843387,10.88651416,159.7,159.62,20.0]
[1724541844493,10.88651416,159.7,159.63,1.56746727]
[1724541844792,10.88651416,159.7,159.64,1.56741615]
[1724541845019,10.88651416,159.7,159.65,1.56741615]
[1724541845202,10.88651416,159.7,159.66,1.56741615]
[1724541845399,10.88651416,159.7,159.62,20.0]
[1724541845400,10.88651416,159.7,159.67,1.56741615]
[1724541845579,16.2802,159.72,159.68,1.56741615]
[1724541845783,16.2802,159.72,159.69,1.56741615]
[1724541846086,16.2802,159.72,159.64,20.0]
[1724541846087,16.2802,159.72,159.7,1.56741615]
[1724541846403,16.2802,159.72,159.64,20.0]
[1724541846703,27.16671416,159.72,159.65,1.56725729]
[1724541846878,27.16671416,159.72,159.66,1.56725729]
[1724541847196,27.16671416,159.72,159.67,1.56725729]
[1724541847397,27.16671416,159.72,159.68,1.56725729]
[1724541847587,27.16671416,159.72,159.69,1.56725729]
[1724541847903,27.16671416,159.72,159.7,1.56725729]
[1724541848078,27.16671416,159.72,159.64,20.0]
[1724541848279,27.16671416,159.72,159.65,1.56725816]
[1724541848496,27.16671416,159.72,159.64,20.0]
[1724541848497,27.16671416,159.72,159.66,1.56725816]
[1724541848694,27.16671416,159.72,159.67,1.56725816]
[1724541848911,27.16671416,159.72,159.68,1.56725766]
[1724541849292,27.16671416,159.72,159.64,20.0]
[1724541849494,16.2802,159.72,159.69,1.56725752]
[1724541849802,16.2802,159.72,159.7,1.56725752]
[1724541850001,16.2802,159.72,159.71,1.56725752]
[1724541850389,16.2802,159.72,159.71,1.56723042]
[1724541851409,16.2802,159.72,159.69,2.83119973]
[1724541851720,16.2802,159.72,159.7,1.56723078]
[1724541851898,16.2802,159.72,159.66,21.25228627]
[1724541852097,16.2802,159.72,159.67,4.39709117]
[1724541852411,16.2802,159.72,159.68,4.39709117]
[1724541852619,16.2802,159.72,159.69,4.39709117]
[1724541852815,16.2802,159.72,159.7,1.56723122]
[1724541853003,16.2802,159.72,159.66,20.0]
[1724541853202,16.2802,159.72,159.67,4.39706775]
[1724541853414,16.2802,159.72,159.68,4.39706775]
[1724541853714,16.2802,159.72,159.69,4.39706775]
[1724541854017,16.2802,159.72,159.7,1.56723122]
[1724541854226,16.2802,159.72,159.66,20.0]
[1724541854416,16.2802,159.72,159.67,4.39813604]
[1724541854598,16.2802,159.72,159.68,4.39813604]
[1724541854798,16.2802,159.72,159.69,4.39813604]
[1724541855016,16.2802,159.72,159.7,1.56723122]
[1724541855322,16.2802,159.72,159.67,1.25228723]
[1724541855510,16.2802,159.72,159.68,4.39727287]
[1724541855712,16.2802,159.72,159.69,5.64946902]
[1724541856004,16.2802,159.72,159.7,1.56723064]
[1724541856312,16.2802,159.72,159.69,20.0]
[1724541856711,16.2802,159.72,159.7,1.56723071]
[1724541856901,16.2802,159.72,159.66,20.0]
[1724541858301,16.2802,159.72,159.64,20.0]
[1724541862128,16.2802,159.72,159.65,4.57304412]
[1724541862424,16.2802,159.72,159.66,4.57304412]
[1724541862625,16.2802,159.72,159.67,4.57304412]
[1724541862803,16.2802,159.72,159.65,4.57304412]
[1724541863006,16.2802,159.72,159.64,20.0]
[1724541863007,16.2802,159.72,159.66,4.57304412]
[1724541863205,16.2802,159.72,159.67,4.57304412]
[1724541863525,16.2802,159.72,159.64,4.57304412]
[1724541863718,16.2802,159.72,159.65,4.57304412]
[1724541863914,16.2802,159.72,159.66,4.57304412]
[1724541864215,16.2802,159.72,159.67,4.57304412]
[1724541864532,27.16671416,159.72,159.65,24.57304412]
[1724541864698,27.16671416,159.72,159.66,11.94387717]
[1724541864895,27.16671416,159.72,159.67,20.0]
[1724541865132,27.16671416,159.72,159.67,24.57651011]
[1724541865295,27.16671416,159.72,159.67,20.0]
[1724541865709,27.16671416,159.72,159.62,12.41746874]
[1724541865710,27.16671416,159.72,159.63,27.37155988]
[1724541866236,27.16671416,159.72,159.64,11.94826714]
[1724541866422,27.16671416,159.72,159.65,31.94826714]
[1724541866723,27.16671416,159.72,159.66,31.94826714]
[1724541866918,27.16671416,159.72,159.67,4.57670726]
[1724541867113,27.16671416,159.72,159.64,11.94671805]
[1724541867294,27.16671416,159.72,159.65,31.94671805]
[1724541867495,27.16671416,159.72,159.66,11.94671805]
[1724541867707,27.16671416,159.72,159.67,24.57670726]
[1724541867921,27.16671416,159.72,159.67,20.0]
[1724541868326,27.16671416,159.72,159.64,7.36983623]
[1724541868638,27.16671416,159.72,159.65,24.57474005]
[1724541868820,27.16671416,159.72,159.65,24.57422221]
[1724541869133,27.16671416,159.72,159.65,27.36774205]
[1724541869338,27.16671416,159.72,159.66,4.57403183]
[1724541869511,27.16671416,159.72,159.65,20.0]
[1724541869711,27.16671416,159.72,159.64,1.25236027]
[1724541870407,27.16671416,159.72,159.65,1.25234611]
[1724541876855,16.2802,159.72,159.65,1.25234611]
[1724541877347,16.2802,159.72,159.65,21.25234611]
[1724541878957,16.2802,159.72,159.65,20.0]
[1724541881766,16.2802,159.72,159.65,21.25229871]
[1724541885642,16.2802,159.72,159.66,9.22991735]
[1724541885862,16.2802,159.72,159.67,30.4821908]
[1724541886063,16.2802,159.72,159.68,9.22991735]
[1724541886356,16.2802,159.72,159.69,20.0]
[1724541886956,16.2802,159.72,159.68,1.2522712]
[1724541887157,16.2802,159.72,159.68,10.48218855]
[1724541887357,16.2802,159.72,159.69,20.0]
[1724541887957,16.2802,159.72,159.67,20.0]
[1724541888474,16.2802,159.72,159.68,9.2300774]
[1724541888768,16.2802,159.72,159.69,20.0]
[1724541889350,16.2802,159.72,159.68,20.0]
[1724541889556,16.2802,159.72,159.67,20.0]
[1724541889777,16.2802,159.72,159.68,9.22819345]
[1724541890091,16.2802,159.72,159.69,20.0]
[1724541890278,16.2802,159.72,159.67,20.0]
[1724541890478,16.2802,159.72,159.68,9.22693881]
[1724541890772,16.2802,159.72,159.69,20.0]
[1724541891252,16.2802,159.72,159.63,10.88651416]
[1724541891253,16.2802,159.72,159.66,7.81085689]
[1724541891451,16.2802,159.72,159.67,29.22637587]
[1724541891977,16.2802,159.72,159.68,9.22637587]
[1724541892160,16.2802,159.72,159.67,20.0]
[1724541892161,16.2802,159.72,159.69,20.0]
[1724541892873,16.2802,159.72,159.67,20.0]
[1724541893170,16.2802,159.72,159.68,9.22562136]
[1724541893373,16.2802,159.72,159.69,20.0]
[1724541893559,16.2802,159.72,159.67,20.0]
[1724541893751,16.2802,159.72,159.68,9.22580632]
[1724541893956,16.2802,159.72,159.69,29.22580632]
[1724541894155,16.2802,159.72,159.7,20.0]
[1724541894355,16.2802,159.72,159.68,9.22621377]
[1724541894552,16.2802,159.72,159.69,29.22663578]
[1724541894780,16.2802,159.72,159.7,20.0]
[1724541894958,16.2802,159.72,159.68,9.22691825]
[1724541895160,16.2802,159.72,159.69,20.0]
[1724541895770,16.2802,159.72,159.67,20.0]
[1724541896054,16.2802,159.72,159.68,9.22685252]
[1724541896278,16.2802,159.72,159.69,20.0]
[1724541896666,16.2802,159.72,159.67,20.0]
[1724541896864,16.2802,159.72,159.68,9.22678027]
[1724541897056,16.2802,159.72,159.69,20.0]
[1724541897256,16.2802,159.72,159.67,20.0]
[1724541897477,16.2802,159.72,159.68,10.4797761]
[1724541897779,16.2802,159.72,159.69,29.227512]
[1724541897960,16.2802,159.72,159.7,1.2521758]
[1724541898657,16.2802,159.72,159.7,21.2521758]
[1724541898857,16.2802,159.72,159.7,1.2521758]
[1724541899068,16.2802,159.72,159.68,1.25217682]
[1724541899276,16.2802,159.72,159.69,9.22687923]
[1724541899484,16.2802,159.72,159.7,29.22516026]
[1724541899788,16.2802,159.72,159.7,20.0]
[1724541900262,16.2802,159.72,159.69,20.0]
[1724541900453,16.2802,159.72,159.7,10.47931366]
[1724541900657,16.2802,159.72,159.71,20.0]
[1724541901396,16.2802,159.72,159.7,1.25217686]
[1724541901680,16.2802,159.72,159.69,20.0]
[1724541901986,16.2802,159.72,159.7,9.22702116]
[1724541902175,16.2802,159.72,159.71,20.0]
[1724541902684,16.2802,159.72,159.7,29.22836176]
[1724541902881,16.2802,159.72,159.7,20.0]
[1724541903182,16.2802,159.72,159.68,14.06106347]
[1724541903183,16.2802,159.72,159.69,20.0]
[1724541903377,16.2802,159.72,159.7,9.22817807]
[1724541903555,27.16671416,159.72,159.71,20.0]
[1724541903760,27.16671416,159.72,159.69,20.0]
[1724541904162,27.16671416,159.72,159.68,20.0]
[1724541904363,27.16671416,159.72,159.69,9.22989935]
[1724541904571,27.16671416,159.72,159.7,20.0]
[1724541904778,27.16671416,159.72,159.71,4.89405217]
[1724541905768,16.2802,159.72,159.71,4.89405217]
[1724541905983,27.16671416,159.72,159.71,4.89405217]
[1724541906376,27.16671416,159.72,159.69,20.0]
[1724541906570,27.16671416,159.72,159.71,4.89415192]
[1724541906885,27.16671416,159.72,159.68,29.23025961]
[1724541907066,27.16671416,159.72,159.71,4.89395415]
[1724541907482,27.16671416,159.72,159.69,9.229885]
[1724541907677,27.16671416,159.72,159.7,20.0]
[1724541908166,27.16671416,159.72,159.69,29.22820168]
[1724541908367,27.16671416,159.72,159.69,20.0]
[1724541910393,27.16671416,159.72,159.68,20.0]
[1724541910591,27.16671416,159.72,159.69,9.22719278]
[1724541910895,27.16671416,159.72,159.7,20.0]
[1724541912888,10.88651416,159.7,159.66,9.23149754]
[1724541913068,10.88651416,159.7,159.67,20.0]
[1724541913270,10.88651416,159.7,159.65,20.0]
[1724541913496,10.88651416,159.7,159.66,9.23148987]
[1724541913793,10.88651416,159.7,159.67,20.0]
[1724541914183,10.88651416,159.7,159.66,29.23148987]
[1724541914381,10.88651416,159.7,159.66,20.0]
[1724541914687,10.88651416,159.7,159.66,29.23255524]
[1724541914894,10.88651416,159.7,159.66,20.0]
[1724541915109,10.88651416,159.7,159.66,29.23255524]
[1724541915279,10.88651416,159.7,159.66,20.0]
[1724541915482,10.88651416,159.7,159.66,29.23255524]
[1724541915681,10.88651416,159.7,159.66,20.0]
[1724541915881,10.88651416,159.7,159.66,29.23255524]
[1724541916080,33.68101389,159.72,159.66,20.0]
[1724541916371,33.68101389,159.72,159.66,29.2306583]
[1724541916575,22.79449973,159.72,159.66,20.0]
[1724541917089,22.79449973,159.72,159.67,4.39563503]
[1724541917400,33.68101389,159.72,159.68,1.56741604]
[1724541917572,33.68101389,159.72,159.68,2.82821899]
[1724541917775,33.68101389,159.72,159.69,2.82821899]
[1724541917996,33.68101389,159.72,159.65,20.0]
[1724541918381,10.88651416,159.7,159.65,20.0]
[1724541918696,10.88651416,159.7,159.63,14.06568833]
[1724541919105,10.88651416,159.7,159.63,6.25143508]
[1724541919681,10.88651416,159.7,159.6,10.88651416]
[1724541920009,10.88651416,159.7,159.63,6.25283686]
[1724541920207,10.88651416,159.7,159.64,20.0]
[1724541921501,10.88651416,159.71,159.64,20.0]
[1724541923487,10.88651416,159.71,159.65,1.25257821]
[1724541923892,10.88651416,159.71,159.64,20.0]
[1724541925499,22.79449973,159.72,159.64,20.0]
[1724541926000,22.79449973,159.72,159.64,30.88651416]
[1724541926200,16.2802,159.72,159.64,30.88651416]
[1724541929737,16.2802,159.72,159.65,4.57141535]
[1724541929899,16.2802,159.72,159.66,4.57141535]
[1724541930091,16.2802,159.72,159.64,30.88651416]
[1724541930297,16.2802,159.72,159.67,4.5715076]
[1724541930516,16.2802,159.72,159.64,20.0]
[1724541930691,16.2802,159.72,159.65,4.57103072]
[1724541930913,16.2802,159.72,159.66,4.57103072]
[1724541931125,16.2802,159.72,159.67,4.57103072]
[1724541931327,16.2802,159.72,159.64,20.0]
[1724541931536,16.2802,159.72,159.65,4.57127855]
[1724541931716,16.2802,159.72,159.66,4.57127855]
[1724541932037,16.2802,159.72,159.67,4.57127855]
[1724541932204,16.2802,159.72,159.64,20.0]
[1724541932402,16.2802,159.72,159.65,4.57122796]
[1724541932622,16.2802,159.72,159.66,4.57122796]
[1724541932828,16.2802,159.72,159.67,4.57122796]
[1724541933129,16.2802,159.72,159.64,20.0]
[1724541933336,16.2802,159.72,159.65,4.56932317]
[1724541933536,16.2802,159.72,159.66,4.56932317]
[1724541933826,16.2802,159.72,159.67,4.56812898]
[1724541934032,16.2802,159.72,159.68,4.56812898]
[1724541934204,16.2802,159.72,159.63,26.25395073]
[1724541934411,16.2802,159.72,159.64,4.56798577]
[1724541934611,16.2802,159.72,159.65,4.56798577]
[1724541934819,16.2802,159.72,159.66,4.56798577]
[1724541935011,16.2802,159.72,159.67,4.56798577]
[1724541935213,16.2802,159.72,159.68,4.56798577]
[1724541935411,16.2802,159.72,159.63,26.25395073]
[1724541935624,16.2802,159.72,159.64,4.56794383]
[1724541935820,16.2802,159.72,159.65,4.56794383]
[1724541936022,16.2802,159.72,159.66,4.56794383]
[1724541936228,16.2802,159.72,159.67,4.56794383]
[1724541936409,16.2802,159.72,159.68,4.56794383]
[1724541936614,16.2802,159.72,159.65,20.0]
[1724541936832,16.2802,159.72,159.66,4.56800229]
[1724541937036,22.79474686,159.72,159.67,4.56800229]
[1724541937339,22.79474686,159.72,159.65,20.0]
[1724541937512,22.79474686,159.72,159.68,4.56802337]
[1724541937715,22.79474686,159.72,159.65,20.0]
[1724541938537,22.79474686,159.72,159.66,4.56831101]
[1724541938708,22.79474686,159.72,159.67,4.56831101]
[1724541938910,22.79474686,159.72,159.68,4.56831101]
[1724541939124,22.79474686,159.72,159.65,20.0]
[1724541939533,22.79474686,159.72,159.66,4.56699499]
[1724541939717,22.79474686,159.72,159.67,4.56699499]
[1724541939920,22.79474686,159.72,159.68,4.56699499]
[1724541940134,22.79474686,159.72,159.64,20.0]
[1724541940436,22.79474686,159.72,159.65,4.56766924]
[1724541940636,22.79474686,159.72,159.66,4.56766924]
[1724541940806,22.79474686,159.72,159.67,4.56766924]
[1724541941009,22.79474686,159.72,159.68,4.56766924]
[1724541941218,22.79474686,159.72,159.64,20.0]
[1724541941430,22.79474686,159.72,159.65,4.56766276]
[1724541941642,22.79474686,159.72,159.66,4.56766276]
[1724541941840,22.79474686,159.72,159.67,4.56766276]
[1724541942137,22.79474686,159.72,159.68,4.56766276]
[1724541942306,22.79474686,159.72,159.64,20.0]
[1724541942507,22.79474686,159.72,159.65,4.56748368]
[1724541942705,22.79474686,159.72,159.66,4.56748368]
[1724541942917,22.79474686,159.72,159.67,4.56748368]
[1724541943121,22.79474686,159.72,159.68,4.56748368]
[1724541943332,22.79474686,159.72,159.64,26.25238306]
[1724541943541,22.79474686,159.72,159.65,4.56766818]
[1724541943840,22.79474686,159.72,159.66,4.56766818]
[1724541944036,22.79474686,159.72,159.64,26.25304674]
[1724541944242,22.79474686,159.72,159.67,4.5674798]
[1724541944539,22.79474686,159.72,159.68,4.5674798]
[1724541944839,22.79474686,159.72,159.64,26.25304674]
[1724541945012,22.79474686,159.72,159.65,4.56766818]
[1724541945212,22.79474686,159.72,159.66,4.56766818]
[1724541945512,22.79474686,159.72,159.67,4.56766818]
[1724541945821,22.79474686,159.72,159.68,4.56766818]
[1724541946024,22.79474686,159.72,159.64,26.25304674]
[1724541946221,22.79474686,159.72,159.65,4.56766818]
[1724541946428,22.79474686,159.72,159.66,4.56766818]
[1724541946631,22.79474686,159.72,159.67,4.56766818]
[1724541946951,22.79474686,159.72,159.68,4.56766818]
[1724541947254,22.79474686,159.72,159.69,16.70510598]
[1724541947542,15.1526,159.76,159.7,21.25213076]
[1724541947746,6.51314661,159.75,159.7,21.25213076]
[1724541947934,6.51314661,159.75,159.71,1.25201819]
[1724541948445,6.51314661,159.75,159.72,4.56487704]
[1724541948625,6.51314661,159.75,159.72,20.0]
[1724541949231,6.51314661,159.75,159.68,20.0]
[1724541955834,6.51314661,159.75,159.68,30.88651416]
[1724541959941,6.51314661,159.75,159.69,1.25210354]
[1724541960329,6.51314661,159.75,159.68,30.88651416]
[1724541961142,6.51314661,159.75,159.68,20.0]
[1724541961351,17.39966077,159.75,159.68,20.0]
[1724541961665,17.39966077,159.75,159.67,20.0]
[1724541963456,10.88651416,159.71,159.63,6.24856898]
[1724541964948,10.88651416,159.71,159.64,20.0]
[1724541966334,10.88651416,159.71,159.63,6.25117984]
[1724541966554,10.88651416,159.71,159.64,20.0]
[1724541967632,10.88651416,159.71,159.65,4.89390936]
[1724541967948,10.88651416,159.71,159.66,4.89390936]
[1724541968144,10.88651416,159.71,159.64,20.0]
[1724541971875,28.67111235,159.72,159.64,20.0]
[1724541972175,28.67111235,159.72,159.67,10.88651416]
[1724541972472,22.1532,159.72,159.68,20.0]
[1724541974343,22.1532,159.72,159.68,21.2522301]
[1724541974744,22.1532,159.72,159.68,20.0]
[1724541974941,22.1532,159.72,159.67,20.0]
[1724541975156,22.1532,159.72,159.66,20.0]
[1724541975472,22.1532,159.72,159.65,20.0]
[1724541975672,22.1532,159.72,159.64,26.24682038]
[1724541975841,22.1532,159.72,159.64,32.4950012]
[1724541977071,22.1532,159.72,159.64,26.24682038]
[1724541977376,22.1532,159.72,159.64,32.49358382]
[1724541978076,22.1532,159.72,159.64,26.24682038]
[1724541978242,22.1532,159.72,159.65,2.82630488]
[1724541978441,22.1532,159.72,159.66,2.82630488]
[1724541978643,22.1532,159.72,159.67,2.82630488]
[1724541978872,22.1532,159.72,159.68,2.82630488]
[1724541979077,22.1532,159.72,159.64,26.24682038]
[1724541980537,22.1532,159.72,159.65,10.88651416]
[1724541980763,22.1532,159.72,159.66,20.0]
[1724541981964,22.1532,159.72,159.67,10.88651416]
[1724541982144,22.1532,159.72,159.68,20.0]
[1724541984584,22.1532,159.72,159.67,10.88651416]
[1724541984762,15.7864,159.72,159.68,21.25223028]
[1724541986190,15.7864,159.72,159.68,20.0]
[1724541986871,15.7864,159.72,159.69,1.25218341]
[1724541988076,15.7864,159.72,159.68,20.0]
[1724541988274,6.51193947,159.75,159.71,10.88651416]
[1724541988588,6.51193947,159.75,159.74,10.88651416]
[1724541988760,6.51193947,159.75,159.74,30.88651416]
[1724541989192,6.51193947,159.75,159.74,33.83232053]
[1724541989558,6.51193947,159.75,159.74,22.94580637]
[1724541990286,15.1117,159.74,159.66,7.80834352]
[1724541990489,25.99821416,159.74,159.67,27.34713909]
[1724541990671,25.99821416,159.74,159.68,7.34713909]
[1724541990873,6.51193947,159.75,159.73,10.88651416]
[1724541991079,6.51193947,159.75,159.74,20.0]
[1724541991292,17.12923825,159.89,159.74,50.88651416]
[1724541991293,15.1117,159.87,159.74,50.88651416]
[1724541991589,25.99821416,159.87,159.75,45.0]
[1724541991772,25.99821416,159.87,159.76,20.0]
[1724541991966,10.88651416,159.85,159.76,20.0]
[1724541992873,21.3669,159.87,159.76,20.0]
[1724541992874,10.88651416,159.83,159.76,20.0]
[1724541993075,10.88651416,159.83,159.73,10.88651416]
[1724541993261,26.31601416,159.81,159.71,6.251]
[1724541993462,10.88651416,159.79,159.67,6.66]
[1724541993696,10.88651416,159.79,159.68,18.23319851]
[1724541993861,10.88651416,159.79,159.69,7.34668435]
[1724541994058,10.88651416,159.79,159.7,7.34668435]
[1724541994261,10.88651416,159.79,159.71,7.34668435]
[1724541994461,27.12063371,159.8,159.67,14.46834352]
[1724541994673,27.12063371,159.8,159.68,60.15445655]
[1724541994893,27.12063371,159.8,159.69,7.34611303]
[1724541995087,27.12063371,159.8,159.7,7.34611303]
[1724541995304,27.12063371,159.8,159.68,45.0]
[1724541995467,27.12063371,159.8,159.71,7.34529803]
[1724541995677,27.12063371,159.8,159.69,7.34529803]
[1724541995989,27.12063371,159.8,159.7,27.34529803]
[1724541996202,27.12063371,159.8,159.7,28.59718364]
[1724541996667,27.12063371,159.8,159.71,7.34529803]
[1724541996990,27.12063371,159.8,159.72,7.34538663]
[1724541997300,27.12063371,159.8,159.71,1.25188638]
[1724541997510,27.12063371,159.8,159.72,7.34538663]
[1724541997667,27.12063371,159.8,159.71,1.25188638]
[1724541997867,27.12063371,159.8,159.72,7.34538598]
[1724541998070,27.12063371,159.8,159.73,1.25188666]
[1724541998270,27.12063371,159.8,159.7,8.59832754]
[1724541998575,27.12063371,159.8,159.71,8.59832756]
[1724541998898,27.12063371,159.8,159.72,7.34555517]
[1724541999089,27.12063371,159.8,159.71,1.25188665]
[1724542000298,27.12063371,159.8,159.69,20.0]
[1724542000474,27.12063371,159.8,159.7,7.34561515]
[1724542000674,27.12063371,159.8,159.71,7.34561515]
[1724542000881,27.12063371,159.8,159.7,1.25188727]
[1724542001082,27.12063371,159.8,159.71,7.34576944]
[1724542001395,27.12063371,159.8,159.71,1.25188732]
[1724542002001,6.50978291,159.79,159.71,1.25188732]
[1724542002796,27.12063371,159.77,159.71,1.25188732]
[1724542003001,27.12063371,159.77,159.69,20.0]
[1724542003306,27.12063371,159.77,159.7,8.59787744]
[1724542003481,33.63041662,159.79,159.71,8.59778701]
[1724542003670,33.63041662,159.79,159.72,7.34598953]
[1724542003873,33.63041662,159.79,159.73,1.25175928]
[1724542004088,33.63041662,159.79,159.74,1.25175902]
[1724542004393,33.63041662,159.79,159.71,8.59672311]
[1724542004599,33.63041662,159.79,159.72,7.344962]
[1724542004904,33.63041662,159.79,159.73,1.25177495]
[1724542005214,33.63041662,159.79,159.74,1.25177584]
[1724542005500,33.63041662,159.79,159.71,8.59662905]
[1724542005676,33.63041662,159.79,159.71,1.25177922]
[1724542005882,6.50978291,159.79,159.72,7.34485675]
[1724542006082,6.50978291,159.79,159.73,1.25154238]
[1724542006296,6.50978291,159.79,159.74,1.25153711]
[1724542007194,6.50978291,159.79,159.73,65.0]
[1724542009224,6.50978291,159.79,159.74,6.3178]
[1724542009430,0.0760203,159.79,159.78,20.0]
[1724542009588,27.12063371,159.9,159.78,41.25091336]
[1724542009793,27.12063371,159.9,159.79,65.0]
[1724542009990,27.12063371,159.88,159.79,65.0]
[1724542010326,27.12063371,159.86,159.79,65.0]
[1724542010619,27.12063371,159.85,159.79,65.0]
[1724542010812,6.2548,159.88,159.79,65.0]
[1724542011017,27.12063371,159.85,159.79,65.0]
[1724542011404,27.12063371,159.85,159.79,45.0]
[1724542011715,27.12063371,159.82,159.74,6.3178]
[1724542012105,27.12063371,159.82,159.72,35.7032]
[1724542012304,27.12063371,159.8,159.73,4.56121796]
[1724542012499,27.12063371,159.8,159.72,15.7032]
[1724542012500,27.12063371,159.78,159.74,4.56121796]
[1724542012701,27.12063371,159.78,159.72,7.34730601]
[1724542012915,27.12063371,159.78,159.73,4.56177732]
[1724542013101,27.12063371,159.77,159.72,7.34730601]
[1724542013418,27.12063371,159.76,159.73,4.56168752]
[1724542013726,27.12063371,159.76,159.72,7.34730601]
[1724542013928,27.12063371,159.76,159.73,4.5622301]
[1724542014134,6.2578,159.8,159.7,7.34730601]
[1724542014330,6.2578,159.8,159.71,11.90958344]
[1724542014632,6.2578,159.8,159.72,11.90958344]
[1724542014633,27.12063371,159.76,159.72,11.90958344]
[1724542014836,27.12063371,159.76,159.73,4.56227743]
[1724542015130,27.12063371,159.76,159.7,7.34730601]
[1724542015438,27.12063371,159.76,159.71,45.0]
[1724542015731,27.12063371,159.76,159.72,4.56235478]
[1724542015938,27.12063371,159.76,159.73,4.56239541]
[1724542016237,27.12063371,159.76,159.72,7.34865723]
[1724542016440,27.12063371,159.76,159.73,4.56239141]
[1724542016736,27.12063371,159.76,159.72,7.34865723]
[1724542016937,27.12063371,159.76,159.73,4.56237914]
[1724542017123,27.12063371,159.76,159.72,7.34865723]
[1724542017311,27.12063371,159.76,159.73,4.56237617]
[1724542017639,27.12063371,159.76,159.74,4.56237617]
[1724542017834,27.12063371,159.76,159.71,45.0]
[1724542018148,27.12063371,159.78,159.72,11.9112057]
[1724542018312,27.12063371,159.78,159.73,4.56245405]
[1724542018513,27.12063371,159.78,159.74,4.56245405]
[1724542018717,27.12063371,159.78,159.71,45.0]
[1724542019043,6.2547,159.88,159.74,47.12063371]
[1724542019217,27.12063371,159.88,159.76,20.0]
[1724542019420,27.12063371,159.88,159.77,46.25098994]
[1724542020337,33.37533371,159.88,159.77,45.0]
[1724542020536,6.2547,159.88,159.77,45.0]
[1724542020837,27.12063371,159.84,159.77,45.0]
[1724542021047,6.2561,159.85,159.77,45.0]
[1724542021207,27.12063371,159.84,159.77,45.0]
[1724542021410,33.64024398,159.84,159.77,45.0]
[1724542021636,39.89644398,159.84,159.77,45.0]
[1724542023214,39.89644398,159.84,159.73,22.4948]
[1724542023414,27.12063371,159.82,159.74,69.56049049]
[1724542023724,27.12063371,159.82,159.75,4.56049049]
[1724542023914,27.12063371,159.82,159.74,45.0]
[1724542024318,12.77581027,159.84,159.75,4.5606382]
[1724542024319,27.12063371,159.76,159.75,4.5606382]
[1724542024530,22.7906,159.81,159.75,4.5606382]
[1724542024744,27.12063371,159.76,159.75,4.5606382]
[1724542025219,27.12063371,159.76,159.7,7.34977764]
[1724542025414,27.12063371,159.76,159.67,24.22184918]
[1724542025614,27.12063371,159.76,159.71,4.56279784]
[1724542026020,27.12063371,159.76,159.72,4.56279784]
[1724542026222,27.12063371,159.76,159.69,7.34732663]
[1724542026434,27.12063371,159.76,159.7,11.90889533]
[1724542026644,27.12063371,159.76,159.71,11.90889533]
[1724542026833,27.12063371,159.76,159.71,4.5615687]
[1724542027151,27.12063371,159.76,159.72,4.5615687]
[1724542027320,27.12063371,159.76,159.67,24.22184918]
[1724542027521,27.12063371,159.76,159.68,45.0]